fUST/lending_fUST_20250713
["ID","MTS","AMOUNT","RATE_DAILY","PERIOD"]
[371702861,1752394276992,-153.0,0.00021918,2]
[371702862,1752394277001,-153.0,0.00021918,2]
[371702863,1752394277122,-153.0,0.00021918,2]
[371702864,1752394277147,-153.0,0.00021918,2]
[371702865,1752394277157,-153.0,0.00021918,2]
[371702866,1752394277167,-153.0,0.00021918,2]
[371702867,1752394277176,-153.0,0.00021918,2]
[371702868,1752394277186,-153.0,0.00021918,2]
[371702869,1752394277195,-153.0,0.00021918,2]
[371702870,1752394277204,-153.0,0.00021918,2]
[371702871,1752394277213,-153.0,0.00021918,2]
[371702872,1752394277222,-153.0,0.00021918,2]
[371702873,1752394277231,-153.0,0.00021918,2]
[371702874,1752394277240,-153.0,0.00021918,2]
[371702875,1752394277249,-153.0,0.00021918,2]
[371702876,1752394277258,-153.0,0.00021918,2]
[371702877,1752394277267,-153.0,0.00021918,2]
[371702878,1752394277277,-153.0,0.00021918,2]
[371702879,1752394277286,-153.0,0.00021918,2]
[371702880,1752394277295,-153.0,0.00021918,2]
[371702881,1752394277304,-153.0,0.00021918,2]
[371702882,1752394277314,-153.0,0.00021918,2]
[371702883,1752394277322,-153.0,0.00021918,2]
[371702884,1752394277331,-153.0,0.00021918,2]
[371702885,1752394277340,-153.0,0.00021918,2]
[371702886,1752394277349,-151.0,0.00021918,2]
[371702887,1752394277359,-151.0,0.00021918,2]
[371702888,1752394277369,-151.0,0.00021918,2]
[371702889,1752394277378,-151.0,0.00021918,2]
[371702890,1752394277387,-284.48494287,0.00021918,2]
[371702891,1752394277397,-159.1103038,0.00021918,2]
[371702892,1752394277406,-200.28584847,0.00021918,2]
[371702893,1752394277415,-203.0,0.0002195,2]
[371702894,1752394277424,-156.3639418,0.00021973,2]
[371702895,1752394277434,-1157.32601105,0.00022,2]
[371702896,1752394277443,-581.54,0.00022,2]
[371702897,1752394277453,-154.849508,0.00022022,10]
[371702898,1752394277462,-160.0,0.00022029,7]
[371702899,1752394277471,-156.3639418,0.00022082,2]
[371702900,1752394277482,-154.849508,0.00022141,10]
[371702901,1752394277491,-800.0,0.00022168,2]
[371702902,1752394277500,-10757.49686302,0.00022176,6]
[371702903,1752394277508,-151.0,0.00022176,7]
[371702904,1752394277516,-797.62,0.00022191,2]
[371702905,1752394277525,-618.68,0.00022191,2]
[371702906,1752394277533,-1000.01,0.00022191,2]
[371702907,1752394277542,-715.71,0.00022191,2]
[371702908,1752394277550,-812.41,0.00022191,2]
[371702909,1752394277559,-1679.05,0.00022191,2]
[371702910,1752394277568,-733.36,0.00022191,2]
[371702911,1752394277577,-479.16,0.00022191,2]
[371702912,1752394277585,-584.3,0.00022191,2]
[371702913,1752394277595,-506.57,0.00022191,2]
[371702914,1752394277603,-893.03,0.00022191,2]
[371702915,1752394277612,-695.2,0.00022191,2]
[371702916,1752394277620,-693.44,0.00022191,2]
[371702917,1752394277628,-2792.31,0.00022191,2]
[371702918,1752394277637,-844.75,0.00022191,2]
[371702919,1752394277647,-923.89,0.00022191,2]
[371702920,1752394277656,-699.1,0.00022191,2]
[371702921,1752394277666,-514.93,0.00022191,2]
[371702922,1752394277675,-518.68,0.00022191,2]
[371702923,1752394277685,-2437.23,0.00022191,2]
[371702924,1752394277694,-705.01,0.00022191,2]
[371702925,1752394277704,-901.04,0.00022191,2]
[371702926,1752394277713,-460.0,0.00022191,2]
[371702927,1752394277722,-1505.6,0.00022191,2]
[371702928,1752394277731,-2603.03,0.00022191,2]
[371702929,1752394277741,-6291.67,0.00022191,2]
[371702930,1752394277750,-5734.9,0.00022191,2]
[371702931,1752394277759,-1770.54,0.00022191,2]
[371702932,1752394277768,-1012.86,0.00022191,2]
[371702933,1752394277777,-489.01,0.00022191,2]
[371702934,1752394277786,-4310.84,0.00022191,2]
[371702935,1752394277795,-533.54,0.00022191,2]
[371702936,1752394277804,-2800.25,0.00022191,2]
[371702937,1752394277814,-1059.69,0.00022191,2]
[371702938,1752394277825,-862.57,0.00022191,2]
[371702939,1752394277834,-684.2,0.00022191,2]
[371702940,1752394277844,-479.16,0.00022191,2]
[371702941,1752394277854,-5816.14,0.00022191,2]
[371702942,1752394277863,-1513.32,0.00022191,2]
[371702943,1752394277874,-1859.64,0.00022191,2]
[371702944,1752394277883,-3577.76,0.00022191,2]
[371702945,1752394277893,-897.76,0.00022191,2]
[371702946,1752394277903,-1406.11,0.00022191,2]
[371702947,1752394277913,-156.3639418,0.00022192,2]
[371702948,1752394277922,-159.1103038,0.00022192,2]
[371702949,1752394277932,-155.79111,0.000222,2]
[371702950,1752394277942,-154.849508,0.00022204,8]
[371702951,1752394277952,-160.0,0.00022242,8]
[371702952,1752394277962,-203.0,0.0002228,2]
[371702953,1752394277971,-263.1,0.000223,2]
[371702954,1752394277981,-156.3639418,0.00022329,2]
[371702955,1752394277991,-428.8165762,0.00022356,2]
[371702956,1752394278001,-803.08322815,0.00022397,2]
[371702957,1752394278010,-40000.0,0.000224,2]
[371702958,1752394278020,-151.0,0.000224,7]
[371702959,1752394278030,-207.875769,0.000224,7]
[371702960,1752394278039,-207.875769,0.000224,7]
[371702961,1752394278050,-151.0,0.000224,7]
[371702962,1752394278060,-151.0,0.000224,7]
[371702963,1752394278069,-151.0,0.000224,7]
[371702964,1752394278084,-151.0,0.000224,7]
[371702965,1752394278094,-12598.31844336,0.000224,7]
[371702966,1752394278104,-214.29528141,0.000224,7]
[371702967,1752394278115,-836.956561,0.000224,7]
[371702968,1752394278126,-500.0,0.00022418,8]
[371702969,1752394278135,-156.3639418,0.00022438,2]
[371702970,1752394278145,-160.0,0.00022456,9]
[371702971,1752394278156,-161.0507972,0.00022456,5]
[371702972,1752394278166,-203.293994,0.00022465,7]
[371702973,1752394278176,-203.293994,0.00022465,7]
[371702974,1752394278185,-151.0,0.00022465,7]
[371702975,1752394278195,-151.0,0.00022465,7]
[371702976,1752394278205,-345.848633,0.00022465,7]
[371702977,1752394278215,-345.848633,0.00022465,7]
[371702978,1752394278225,-152.065657,0.00022465,7]
[371702979,1752394278234,-379.823599,0.00022465,2]
[371702980,1752394278244,-379.823599,0.00022465,2]
[371702981,1752394278254,-797.62,0.00022465,2]
[371702982,1752394278263,-618.68,0.00022465,2]
[371702983,1752394278272,-1000.01,0.00022465,2]
[371702984,1752394278282,-715.71,0.00022465,2]
[371702985,1752394278291,-812.41,0.00022465,2]
[371702986,1752394278301,-1679.05,0.00022465,2]
[371702987,1752394278311,-733.36,0.00022465,2]
[371702988,1752394278321,-479.16,0.00022465,2]
[371702989,1752394278330,-584.3,0.00022465,2]
[371702990,1752394278339,-506.57,0.00022465,2]
[371702991,1752394278349,-893.03,0.00022465,2]
[371702992,1752394278357,-695.2,0.00022465,2]
[371702993,1752394278367,-693.44,0.00022465,2]
[371702994,1752394278376,-2792.31,0.00022465,2]
[371702995,1752394278386,-844.75,0.00022465,2]
[371702996,1752394278395,-923.89,0.00022465,2]
[371702997,1752394278405,-699.1,0.00022465,2]
[371702998,1752394278415,-514.93,0.00022465,2]
[371702999,1752394278426,-518.68,0.00022465,2]
[371703000,1752394278436,-2437.23,0.00022465,2]
[371703001,1752394278446,-705.01,0.00022465,2]
[371703002,1752394278456,-901.04,0.00022465,2]
[371703003,1752394278467,-336.06877564,0.00022465,2]
[371703004,1752394278477,-1505.6,0.00022465,2]
[371703005,1752394278486,-2603.03,0.00022465,2]
[371703006,1752394278497,-6291.67,0.00022465,2]
[371703007,1752394278507,-5734.9,0.00022465,2]
[371703008,1752394278516,-1770.54,0.00022465,2]
[371703009,1752394278527,-1012.86,0.00022465,2]
[371703010,1752394278536,-489.01,0.00022465,2]
[371703011,1752394278546,-4310.84,0.00022465,2]
[371703012,1752394278555,-533.54,0.00022465,2]
[371703013,1752394278566,-2800.25,0.00022465,2]
[371703014,1752394278576,-1059.69,0.00022465,2]
[371703015,1752394278586,-862.57,0.00022465,2]
[371703016,1752394278596,-684.2,0.00022465,2]
[371703017,1752394278606,-479.16,0.00022465,2]
[371703018,1752394278615,-5816.14,0.00022465,2]
[371703019,1752394278625,-1513.32,0.00022465,2]
[371703020,1752394278635,-1859.64,0.00022465,2]
[371703021,1752394278645,-3577.76,0.00022465,2]
[371703022,1752394278655,-897.76,0.00022465,2]
[371703023,1752394278665,-1406.11,0.00022465,2]
[371703024,1752394278674,-250.05317699,0.00022466,2]
[371703025,1752394278684,-10757.49686302,0.00022486,7]
[371703026,1752394278693,-10479.88002116,0.0002249,7]
[371703027,1752394278780,-461.77222602,0.0002249,7]
[371703028,1752394278792,-474.14796683,0.0002249,7]
[371703029,1752394278811,-1954.01,0.0001726,2]
[371703030,1752394278821,-1146.94699412,0.0002249,7]
[371703031,1752394278832,-5552.66689364,0.0002249,7]
[371703032,1752394278845,-1212.94581559,0.0002249,7]
[371703033,1752394278857,-531.640718,0.0002249,7]
[371703034,1752394279234,550.0,0.00016438,2]
[371703035,1752394279383,460.0,0.00016438,2]
[371703036,1752394279411,460.0,0.00016438,2]
[371703037,1752394279459,-460.0,0.00016712,2]
[371703038,1752394279468,-505.16367341,0.00017183,2]
[371703039,1752394279478,-500.0,0.00017183,2]
[371703040,1752394279487,-500.0,0.00017183,2]
[371703041,1752394279497,-500.0,0.00017183,2]
[371703042,1752394279507,-500.0,0.00017183,2]
[371703043,1752394279516,-500.0,0.00017183,2]
[371703044,1752394279526,-49.96419463,0.00017183,2]
[371703045,1752394279590,460.0,0.00016438,2]
[371703046,1752394279720,460.0,0.00016438,2]
[371703047,1752394279747,460.0,0.00016438,2]
[371703048,1752394281292,-276.0,0.00016437,2]
[371703049,1752394281314,-460.0,0.00016438,2]
[371703050,1752394281337,-460.0,0.00016438,2]
[371703051,1752394281358,-287.29681853,0.00016438,2]
[371703052,1752394281384,-460.0,0.00016438,2]
[371703053,1752394281406,-460.0,0.00016438,2]
[371703054,1752394281428,-460.0,0.00016438,2]
[371703055,1752394281449,-460.0,0.00016438,2]
[371703056,1752394281471,-460.0,0.00016438,2]
[371703057,1752394281493,-460.0,0.00016438,2]
[371703058,1752394281517,-460.0,0.00016438,2]
[371703059,1752394281539,-380.99330358,0.00016438,2]
[371703060,1752394281562,-460.0,0.00016438,2]
[371703061,1752394281583,-460.0,0.00016438,2]
[371703062,1752394281606,-460.0,0.00016438,2]
[371703063,1752394281627,-460.0,0.00016438,2]
[371703064,1752394281649,-460.0,0.00016438,2]
[371703065,1752394281671,-460.0,0.00016438,2]
[371703066,1752394281693,-460.0,0.00016438,2]
[371703067,1752394281713,-307.14172228,0.00016438,2]
[371703068,1752394281734,-460.49227842,0.00016438,2]
[371703069,1752394281756,-460.0,0.00016438,2]
[371703070,1752394281779,-460.0,0.00016438,2]
[371703071,1752394281803,-460.0,0.00016438,2]
[371703072,1752394281827,-460.0,0.00016438,2]
[371703073,1752394281851,-460.0,0.00016438,2]
[371703074,1752394281873,-460.0,0.00016438,2]
[371703075,1752394281895,-460.0,0.00016438,2]
[371703076,1752394281917,-460.0,0.00016438,2]
[371703077,1752394281941,-460.0,0.00016438,2]
[371703078,1752394281964,-460.0,0.00016438,2]
[371703079,1752394281988,-460.0,0.00016438,2]
[371703080,1752394282009,-465.46483809,0.00016438,2]
[371703081,1752394282032,-460.0,0.00016438,2]
[371703082,1752394282053,-460.0,0.00016438,2]
[371703083,1752394282076,-460.0,0.00016438,2]
[371703084,1752394282100,-460.0,0.00016438,2]
[371703085,1752394282123,-460.0,0.00016438,2]
[371703086,1752394282144,-460.0,0.00016438,2]
[371703087,1752394282168,-460.0,0.00016438,2]
[371703088,1752394282189,-460.0,0.00016712,2]
[371703089,1752394282210,-460.0,0.00016712,2]
[371703090,1752394282231,-606.13520591,0.00016712,2]
[371703091,1752394282253,-460.0,0.00016712,2]
[371703092,1752394282274,-460.0,0.00016712,2]
[371703093,1752394282298,-460.0,0.00016712,2]
[371703094,1752394282319,-460.0,0.00016712,2]
[371703095,1752394282343,-460.0,0.00016712,2]
[371703096,1752394282367,-460.0,0.00016712,2]
[371703097,1752394282505,-460.0,0.00016712,2]
[371703098,1752394282529,-460.0,0.00016712,2]
[371703099,1752394282551,-460.0,0.00016712,2]
[371703100,1752394282577,-460.0,0.00016712,2]
[371703101,1752394282597,-460.0,0.00016712,2]
[371703102,1752394282619,-460.0,0.00016712,2]
[371703103,1752394282640,-460.0,0.00016712,2]
[371703104,1752394282661,-460.0,0.00016712,2]
[371703105,1752394282681,-460.0,0.00016712,2]
[371703106,1752394282703,-460.0,0.00016712,2]
[371703107,1752394282726,-460.0,0.00016712,2]
[371703108,1752394282757,-460.0,0.00016986,2]
[371703109,1752394282779,-460.0,0.00016986,2]
[371703110,1752394282801,-185.120354,0.00016986,2]
[371703111,1752394282823,-185.120354,0.00016986,2]
[371703112,1752394282849,-460.0,0.00016986,2]
[371703113,1752394282872,-460.0,0.00016986,2]
[371703114,1752394282894,-460.0,0.00016986,2]
[371703115,1752394282916,-460.0,0.00016986,2]
[371703116,1752394282939,-280.4211514,0.00016986,2]
[371703117,1752394282962,-151.0,0.00016986,2]
[371703118,1752394282984,-151.0,0.00016986,2]
[371703119,1752394283006,-460.0,0.00016986,2]
[371703120,1752394283028,-876.38,0.0001699,3]
[371703121,1752394283061,460.0,0.00016438,2]
[371703122,1752394283092,460.0,0.00016712,2]
[371703123,1752394283153,365.67973378,0.00016438,2]
[371703124,1752394283187,460.0,0.00016438,2]
[371703125,1752394284333,460.0,0.00016438,2]
[371703126,1752394284590,460.0,0.00016712,2]
[371703127,1752394284834,460.0,0.00016986,2]
[371703128,1752394284863,460.0,0.00016438,2]
[371703129,1752394285127,460.0,0.00016712,2]
[371703130,1752394285505,460.0,0.00016438,2]
[371703131,1752394285551,460.0,0.00016438,2]
[371703132,1752394285804,460.0,0.00016712,2]
[371703133,1752394286084,460.0,0.00016986,2]
[371703134,1752394288321,46446.86817981,0.00016238,2]
[371703135,1752394288344,21962.804013,0.00016238,2]
[371703136,1752394288372,301590.32780719,0.00016238,2]
[371703137,1752394450772,305897.02157675,0.00016238,2]
[371703138,1752394450801,11101.34313342,0.00016238,2]
[371703139,1752394450827,20000.0,0.00016238,2]
[371703140,1752394450851,20000.0,0.00016238,2]
[371703141,1752394450876,13001.63528983,0.00016238,2]
[371703142,1752394572043,6998.36471017,0.0001559,2]
[371703143,1752394572067,17901.63528983,0.0001559,2]
[371703144,1752394648834,-300.0,0.00016336,2]
[371703145,1752394648865,-281.0,0.00016337,2]
[371703146,1752394648891,-300.0,0.00016337,2]
[371703147,1752394648917,-1200.0,0.00016337,2]
[371703148,1752394648945,-300.0,0.00016337,2]
[371703149,1752394648972,-1200.0,0.00016337,2]
[371703150,1752394648997,-298.9092933,0.00016338,2]
[371703151,1752394649021,-6120.0907067,0.00016338,2]
[371703152,1752394717233,500.0,0.00022986,30]
[371703155,1752394836068,261.54563162,0.00016273,2]
[371703156,1752394981849,167.46690152,0.00027397,120]
[371703157,1752394995963,-1200.0,0.00016337,2]
[371703158,1752394995985,-183.0,0.00016337,2]
[371703159,1752394996011,-403.0,0.00016337,2]
[371703160,1752394996036,-300.0,0.00016337,2]
[371703161,1752394996059,-11538.98721438,0.00016338,2]
[371703162,1752394996083,-26375.01278562,0.00016338,2]
[371703163,1752395055082,1836.81907855,0.00016,2]
[371703164,1752395055105,18487.18092145,0.00016,2]
[371703165,1752395081082,-228.85242772,0.00016338,2]
[371703166,1752395081106,-4255.25205752,0.00016338,2]
[371703167,1752395081128,-2515.89551476,0.00016373,2]
[371703168,1752395094760,207.4444077,0.0001555,2]
[371703170,1752395119443,463.384407,0.00013699,2]
[371703171,1752395163540,10000.0,0.00027397,120]
[371703224,1752395324233,603.999999,0.00025204,120]
[371703227,1752395350870,156.7587613,7.5e-07,2]
[371703465,1752395438776,-1099.0,0.00016427,2]
[371703468,1752395438786,-300.0,0.00016427,2]
[371703471,1752395438796,-1336.97,0.00016428,3]
[371703473,1752395438805,-668.49,0.00016428,3]
[371703475,1752395438815,-334.24,0.00016428,3]
[371703477,1752395438825,-167.12,0.00016428,3]
[371703479,1752395438834,-501.41,0.00016428,3]
[371703481,1752395438843,-519.69,0.00016428,3]
[371703483,1752395438853,-241.81,0.00016428,3]
[371703485,1752395438862,-725.47,0.00016428,3]
[371703487,1752395438872,-460.0,0.00016438,2]
[371703489,1752395438882,-460.0,0.00016438,2]
[371703491,1752395438892,-460.0,0.00016438,2]
[371703493,1752395438902,-460.0,0.00016438,2]
[371703495,1752395438911,-460.0,0.00016438,2]
[371703497,1752395438921,-460.0,0.00016438,2]
[371703499,1752395438930,-460.0,0.00016438,2]
[371703501,1752395438940,-460.0,0.00016438,2]
[371703503,1752395438950,-340.0,0.00016438,2]
[371703505,1752395438960,-461.77044282,0.00016438,2]
[371703507,1752395438970,-460.0,0.00016438,2]
[371703509,1752395438979,-460.0,0.00016438,2]
[371703511,1752395438989,-460.0,0.00016438,2]
[371703513,1752395438998,-460.75328239,0.00016438,2]
[371703515,1752395439008,-460.0,0.00016438,2]
[371703517,1752395439016,-460.0,0.00016438,2]
[371703519,1752395439026,-460.0,0.00016438,2]
[371703521,1752395439035,-460.0,0.00016438,2]
[371703523,1752395439044,-430.0,0.00016438,2]
[371703525,1752395439053,-460.0,0.00016438,2]
[371703527,1752395439063,-460.0,0.00016438,2]
[371703529,1752395439072,-460.0,0.00016438,2]
[371703531,1752395439082,-460.0,0.00016438,2]
[371703533,1752395439091,-460.0,0.00016438,2]
[371703535,1752395439100,-155.04150344,0.00016438,2]
[371703537,1752395439109,-460.0,0.00016438,2]
[371703539,1752395439119,-460.0,0.00016438,2]
[371703541,1752395439129,-460.0,0.00016438,2]
[371703543,1752395439138,-460.0,0.00016438,2]
[371703545,1752395439148,-460.0,0.00016438,2]
[371703547,1752395439158,-460.0,0.00016438,2]
[371703549,1752395439168,-460.0,0.00016438,2]
[371703551,1752395439177,-460.0,0.00016438,2]
[371703553,1752395439187,-460.0,0.00016438,2]
[371703555,1752395439196,-460.0,0.00016438,2]
[371703557,1752395439205,-460.0,0.00016438,2]
[371703559,1752395439214,-460.0,0.00016438,2]
[371703561,1752395439224,-460.0,0.00016438,2]
[371703563,1752395439233,-460.0,0.00016438,2]
[371703565,1752395439243,-460.0,0.00016438,2]
[371703567,1752395439252,-460.0,0.00016438,2]
[371703570,1752395439262,-460.0,0.00016438,2]
[371703571,1752395439271,-460.0,0.00016438,2]
[371703573,1752395439281,-460.0,0.00016438,2]
[371703575,1752395439290,-460.0,0.00016438,2]
[371703578,1752395439300,-460.0,0.00016438,2]
[371703579,1752395439310,-460.0,0.00016438,2]
[371703582,1752395439320,-460.0,0.00016438,2]
[371703584,1752395439328,-460.0,0.00016438,2]
[371703585,1752395439338,-460.0,0.00016438,2]
[371703588,1752395439348,-460.0,0.00016438,2]
[371703590,1752395439359,-460.0,0.00016438,2]
[371703592,1752395439368,-461.10148568,0.00016438,2]
[371703594,1752395439377,-460.0,0.00016438,2]
[371703596,1752395439387,-462.26409216,0.00016438,2]
[371703598,1752395439396,-460.0,0.00016438,2]
[371703599,1752395439405,-460.0,0.00016438,2]
[371703602,1752395439416,-460.0,0.00016438,2]
[371703604,1752395439426,-407.14005697,0.00016438,2]
[371703606,1752395439436,-460.0,0.00016438,2]
[371703608,1752395439445,-460.0,0.00016438,2]
[371703610,1752395439455,-460.0,0.00016438,2]
[371703612,1752395439465,-460.0,0.00016438,2]
[371703614,1752395439476,-542.26169739,0.00016438,2]
[371703616,1752395439486,-460.0,0.00016438,2]
[371703618,1752395439499,-460.0,0.00016438,2]
[371703620,1752395439508,-460.0,0.00016438,2]
[371703622,1752395439518,-460.92484607,0.00016438,2]
[371703624,1752395439527,-460.0,0.00016438,2]
[371703626,1752395439537,-460.0,0.00016438,2]
[371703628,1752395439547,-460.0,0.00016438,2]
[371703630,1752395439556,-460.0,0.00016438,2]
[371703632,1752395439566,-460.0,0.00016438,2]
[371703634,1752395439576,-460.0,0.00016438,2]
[371703636,1752395439585,-460.0,0.00016438,2]
[371703638,1752395439595,-460.0,0.00016438,2]
[371703640,1752395439604,-451.10603502,0.00016438,2]
[371703642,1752395439614,-460.0,0.00016438,2]
[371703644,1752395439623,-460.0,0.00016438,2]
[371703646,1752395439633,-460.0,0.00016438,2]
[371703648,1752395439643,-460.0,0.00016438,2]
[371703650,1752395439652,-460.0,0.00016438,2]
[371703652,1752395439663,-460.0,0.00016438,2]
[371703655,1752395439678,-460.0,0.00016438,2]
[371703657,1752395439688,-460.0,0.00016438,2]
[371703659,1752395439697,-460.0,0.00016438,2]
[371703661,1752395439707,-460.0,0.00016438,2]
[371703663,1752395439716,-461.22322508,0.00016438,2]
[371703665,1752395439727,-460.0,0.00016438,2]
[371703668,1752395439745,-460.0,0.00016438,2]
[371703670,1752395439758,-461.3665911,0.00016438,2]
[371703672,1752395439768,-396.03338289,0.00016438,2]
[371703674,1752395439778,-460.0,0.00016438,2]
[371703676,1752395439789,-372.54466094,0.00016438,2]
[371703679,1752395439799,-460.0,0.00016438,2]
[371703681,1752395439809,-460.0,0.00016438,2]
[371703683,1752395439818,-460.0,0.00016438,2]
[371703685,1752395439828,-460.0,0.00016438,2]
[371703687,1752395439837,-460.0,0.00016438,2]
[371703689,1752395439847,-460.0,0.00016438,2]
[371703691,1752395439857,-460.0,0.00016438,2]
[371703693,1752395439866,-460.0,0.00016438,2]
[371703695,1752395439876,-460.0,0.00016438,2]
[371703697,1752395439886,-460.0,0.00016438,2]
[371703699,1752395439897,-460.0,0.00016438,2]
[371703701,1752395439908,-460.0,0.00016438,2]
[371703703,1752395439919,-460.0,0.00016438,2]
[371703705,1752395439929,-460.0,0.00016438,2]
[371703707,1752395439939,-460.6409462,0.00016438,2]
[371703709,1752395439949,-460.0,0.00016438,2]
[371703711,1752395439958,-460.0,0.00016438,2]
[371703713,1752395439968,-400.4237536,0.00016438,2]
[371703715,1752395439978,-460.0,0.00016438,2]
[371703717,1752395439988,-460.0,0.00016438,2]
[371703719,1752395439998,-460.0,0.00016438,2]
[371703721,1752395440007,-507.78733037,0.00016438,2]
[371703723,1752395440017,-460.0,0.00016438,2]
[371703725,1752395440026,-460.0,0.00016438,2]
[371703727,1752395440036,-460.0,0.00016438,2]
[371703729,1752395440046,-460.0,0.00016438,2]
[371703731,1752395440055,-460.0,0.00016438,2]
[371703733,1752395440065,-460.0,0.00016438,2]
[371703735,1752395440074,-460.0,0.00016438,2]
[371703738,1752395440084,-460.0,0.00016438,2]
[371703740,1752395440094,-460.0,0.00016438,2]
[371703743,1752395440104,-460.0,0.00016438,2]
[371703745,1752395440114,-606.13520591,0.00016438,2]
[371703747,1752395440124,-460.0,0.00016438,2]
[371703749,1752395440135,-460.0,0.00016438,2]
[371703751,1752395440144,-460.0,0.00016438,2]
[371703753,1752395440154,-460.0,0.00016438,2]
[371703755,1752395440163,-460.0,0.00016438,2]
[371703757,1752395440173,-460.0,0.00016438,2]
[371703759,1752395440183,-280.4211514,0.00016438,2]
[371703761,1752395440193,-460.0,0.00016438,2]
[371703763,1752395440203,-415.47755217,0.00016438,2]
[371703765,1752395440212,-460.0,0.00016438,2]
[371703767,1752395440222,-460.0,0.00016438,2]
[371703769,1752395440231,-460.0,0.00016438,2]
[371703771,1752395440241,-460.0,0.00016438,2]
[371703773,1752395440251,-460.0,0.00016438,2]
[371703775,1752395440260,-460.0,0.00016438,2]
[371703777,1752395440269,-460.0,0.00016438,2]
[371703780,1752395440279,-461.36909898,0.00016438,2]
[371703782,1752395440288,-460.0,0.00016438,2]
[371703784,1752395440298,-460.0,0.00016438,2]
[371703786,1752395440307,-460.0,0.00016438,2]
[371703788,1752395440316,-460.0,0.00016438,2]
[371703790,1752395440326,-460.0,0.00016438,2]
[371703792,1752395440335,-460.0,0.00016438,2]
[371703794,1752395440345,-460.0,0.00016438,2]
[371703796,1752395440358,-460.0,0.00016438,2]
[371703798,1752395440368,-460.0,0.00016438,2]
[371703800,1752395440377,-460.0,0.00016438,2]
[371703802,1752395440388,-527.36239569,0.00016438,2]
[371703804,1752395440397,-460.0,0.00016438,2]
[371703806,1752395440406,-460.0,0.00016438,2]
[371703808,1752395440416,-460.0,0.00016438,2]
[371703810,1752395440426,-460.0,0.00016438,2]
[371703812,1752395440435,-460.0,0.00016438,2]
[371703814,1752395440445,-460.0,0.00016438,2]
[371703816,1752395440454,-460.0,0.00016438,2]
[371703819,1752395440464,-460.0,0.00016438,2]
[371703821,1752395440475,-460.0,0.00016438,2]
[371703823,1752395440484,-460.0,0.00016438,2]
[371703825,1752395440497,-460.0,0.00016438,2]
[371703827,1752395440507,-460.0,0.00016438,2]
[371703829,1752395440518,-460.51949152,0.00016438,2]
[371703831,1752395440535,-460.0,0.00016438,2]
[371703833,1752395440545,-460.0,0.00016438,2]
[371703835,1752395440554,-460.0,0.00016438,2]
[371703837,1752395440564,-460.0,0.00016438,2]
[371703839,1752395440574,-326.42748335,0.00016438,2]
[371703841,1752395440587,-460.0,0.00016438,2]
[371703843,1752395440597,-460.0,0.00016438,2]
[371703845,1752395440606,-460.0,0.00016438,2]
[371703847,1752395440616,-245.85886653,0.00016438,2]
[371703849,1752395440626,-460.0,0.00016438,2]
[371703851,1752395440635,-460.0,0.00016438,2]
[371703853,1752395440645,-460.0,0.00016438,2]